Cogmind - Beta 9.6 @@@ ROGUE MODE // 2020.09.02 @ 18:26:44 Player: Vectis Result: Core destroyed Performance ------------- Evolutions (4) 2000 Regions Visited (12) 2400 Robots Destroyed (210) 1050 Value Destroyed (8317) 8317 Prototype IDs (11) 220 Alien Tech Used (0) 0 Bonus (2807) 2807 TOTAL SCORE: 16794 Bonus ------- High Alert Combat Kills 650 Follower Combat Kills 588 Entered Garrisons 600 Used RIF Installer 1500 Friendly Fire -531 Cogmind --------- Core Integrity 0/850 Matter 300/300 Energy 100/100 System Corruption 23% Temperature Cool (0) Movement Core (50) Location -6/Waste Parts ------- > --- POWER (1) -------- (None) > --- PROPULSION (4) --- (None) > --- UTILITY (8) ------ (None) > --- WEAPON (2) ------- (None) > --- INVENTORY (4) ---- Micro Nuclear Core Relay Coupler [NC] (34) Relay Coupler [NC] (28) Precision Rocket Launcher Peak State ------------ > --- POWER ------------ Heavy Deuterium Engine > --- PROPULSION ------- Wheel Wheel Compact Wheel Compact Wheel > --- UTILITY ---------- Large Storage Unit Large Storage Unit High-capacity Storage Unit High-capacity Storage Unit Advanced Targeting Computer Damper Plating > --- WEAPON ----------- Remote Datajack Heavy Pick > --- INVENTORY -------- Heavy Deuterium Engine Micro Nuclear Core Antimatter Reactor Medium Treads Medium Treads Wheel Wheel Improved Heat Sink Improved Heat Sink Coolant Injector High-capacity Storage Unit Compact Matter Pod Advanced Sensor Array Relay Coupler [NC] Relay Coupler [NC] Relay Coupler [NC] Relay Coupler [NC] Relay Coupler [NC] System Backup Module Precision Assault Rifle Coil Gun Coil Gun Coil Gun Mini Assault Cannon Mini Assault Cannon Mini Assault Cannon Heavy Rocket Launcher Precision Rocket Launcher Shock Maul [Rating: 53] Favorites ----------- Power Heavy Deuterium Engine Engine Heavy Deuterium Engine Propulsion Light Treads Treads Light Treads Leg Aluminum Leg Wheel Wheel Utility Large Storage Unit Device Coolant Injector Storage Large Storage Unit Processor Advanced Targeting Computer Hackware Relay Coupler [NC] Protection Improved Light Armor Plating Weapon Advanced Beam Cannon Energy Gun Gatling Laser Energy Cannon Advanced Beam Cannon Ballistic Gun Improved Assault Rifle Ballistic Cannon Flak Cannon Launcher Precision Rocket Launcher Special Weapon Remote Datajack Impact Weapon Shock Maul Piercing Weapon Heavy Pick Build | -11 -10 -10 -9 -9 -9 -9 -7 -7 -7 -7 -6 -6 ------- Run | Scr Mat Min Mat Sto Gar Rec Fac Gar Fac Gar Fac Was Slots Evolved 8 | . . . 2 . . . 4 . . . 2 . Power . | . . . . . . . . . . . . . Propulsion 2 | . . . 1 . . . 1 . . . . . Utility 6 | . . . 1 . . . 3 . . . 2 . Weapon . | . . . . . . . . . . . . . Parts Attached 206 | 1 12 1 25 28 18 . 17 10 31 21 36 6 Power 10 | . 1 1 4 2 . . 1 . . 1 . . Engine 10 | . 1 1 4 2 . . 1 . . 1 . . Core . | . . . . . . . . . . . . . Reactor . | . . . . . . . . . . . . . Propulsion 37 | . 1 . 6 4 3 . 1 3 7 4 8 . Treads 24 | . . . 3 4 3 . 1 3 7 3 . . Leg 1 | . 1 . . . . . . . . . . . Wheel 12 | . . . 3 . . . . . . 1 8 . Hover . | . . . . . . . . . . . . . Flight . | . . . . . . . . . . . . . Utility 58 | 1 1 . 6 6 5 . 8 4 8 4 10 5 Device 9 | . . . . 1 1 . 1 2 1 . 2 1 Storage 14 | 1 1 . 2 3 3 . . . 2 . 1 1 Processor 1 | . . . . . . . . . . . 1 . Hackware 10 | . . . . . . . 2 . 3 1 2 2 Protection 24 | . . . 4 2 1 . 5 2 2 3 4 1 Artifact . | . . . . . . . . . . . . . Weapon 101 | . 9 . 9 16 10 . 7 3 16 12 18 1 Energy Gun 10 | . 2 . 1 . . . . . . . 7 . Energy Cannon 34 | . . . . 3 4 . 5 2 9 8 3 . Ballistic Gun 14 | . 5 . . 3 4 . 1 . . . 1 . Ballistic Cannon 12 | . . . 4 6 . . . . . . 2 . Launcher 19 | . 2 . 4 3 2 . . 1 1 4 2 . Special Weapon 7 | . . . . . . . 1 . 4 . 2 . Impact Weapon 3 | . . . . 1 . . . . 2 . . . Slashing Weapon . | . . . . . . . . . . . . . Piercing Weapon 2 | . . . . . . . . . . . 1 1 Special Melee Weapon . | . . . . . . . . . . . . . Unidentified Prototypes 9 | . . . 1 4 . . 2 . . . 1 1 Parts Lost 43 | . 2 . 3 . 2 . . 2 6 12 9 7 Power 3 | . . . 1 . . . . . . 1 . 1 Propulsion 20 | . . . 1 . 2 . . 2 4 6 3 2 Utility 7 | . . . . . . . . . 1 1 2 3 Weapon 13 | . 2 . 1 . . . . . 1 4 4 1 Highest Loss Streak 7 | . 1 . 1 . 2 . . 2 2 6 6 7 Average Slot Usage (%) 95 | . 97 100 95 97 98 100 99 99 97 87 91 49 Engine 8 | . 13 14 10 9 11 11 7 7 7 6 6 2 Treads 23 | . . . 18 33 32 33 30 30 29 18 . . Leg 1 | . 27 28 2 . . . . . . . . . Wheel 3 | . . . 10 . . . . . . . 20 13 Device 3 | . . . . . 4 . 7 7 5 7 6 . Storage 25 | . 28 28 22 23 23 33 23 23 26 30 26 16 Hackware 2 | . . . . . . . 3 5 6 1 5 4 Protection 5 | . . . 10 8 4 . 11 8 4 5 7 1 Energy Cannon 7 | . . . . 1 8 . 14 14 14 14 3 . Ballistic Gun 5 | . 15 28 4 3 12 22 . . . . . . Ballistic Cannon 3 | . . . 16 17 . . . . . . 2 . Naked Turns 154 | . . . . . . . . . . . . 154 Heaviest Build 158 | 15 29 29 54 64 62 62 80 78 103 107 131 158 Greatest Support 88 | 20 20 20 60 60 60 60 80 80 80 88 52 52 Greatest Overweight (x) 10 | . 1 1 1 1 1 1 . . 1 10 10 3 Average Overweight (x) . | . . 1 . . . 1 . . . 1 3 . Largest Inventory Capacity 38 | 8 12 12 16 22 22 22 22 22 30 30 38 38 Average Capacity 21 | 6 10 12 13 16 16 22 22 22 25 30 30 21 Most Carried 38 | 6 12 12 16 20 22 22 22 22 24 22 33 38 Average Carried 18 | 6 9 12 12 16 15 22 21 21 21 20 25 19 Final Capacity 38 | 8 12 12 16 22 22 22 22 22 30 30 38 4 Final Carried 33 | 6 12 12 16 20 22 22 22 22 21 21 33 4 Class Distribution -------------------- 31% | Bothacker-Mutant 27% | Mutant 20% | Hauler-Mutant 18% | Commander-Mutant Dominant Class ---------------- Mutant | -10/Materials Mutant | -10/Mines Mutant | -9/Materials Mutant | -9/Storage Hauler-Mutant | -9/Garrison Commander-Mutant | -9/Recycling Commander-Mutant | -7/Factory Bothacker-Mutant | -7/Garrison Bothacker-Mutant | -7/Factory Bothacker-Mutant | -7/Garrison Bothacker-Mutant | -6/Factory Bothacker-Mutant | -6/Waste Resources | -11 -10 -10 -9 -9 -9 -9 -7 -7 -7 -7 -6 -6 ----------- Run | Scr Mat Min Mat Sto Gar Rec Fac Gar Fac Gar Fac Was Matter Collected 4723 | 216 212 102 840 828 353 84 206 115 522 348 691 206 Remotely . | . . . . . . . . . . . . . Salvage Created 8302 | 64 375 57 918 678 686 95 161 905 1585 730 1532 516 Parts 387 | 2 25 6 77 38 40 9 8 25 53 31 58 15 Haulers Intercepted 10 | . . . 2 5 . . . . 1 . 2 . Recyclers Shooed 11 | . . 1 3 1 . . . . 2 . 4 . Parts Field Recycled . | . . . . . . . . . . . . . Retrieved Matter . | . . . . . . . . . . . . . Parts Self-Destructed . | . . . . . . . . . . . . . Prevented . | . . . . . . . . . . . . . Kills | -11 -10 -10 -9 -9 -9 -9 -7 -7 -7 -7 -6 -6 ------- Run | Scr Mat Min Mat Sto Gar Rec Fac Gar Fac Gar Fac Was Combat Hostiles Destroyed 154 | . 13 . 25 12 23 1 3 13 22 22 18 2 Melee 2 | . . . . . . . . . . . . 2 Guns 28 | . 9 . 4 . 8 1 . . . . 6 . Cannons 80 | . . . 18 9 6 . 3 12 17 9 6 . AOE 39 | . 4 . 3 3 9 . . 1 1 13 5 . Classes Destroyed 17 | 1 4 1 5 . . 1 1 2 . 1 . 1 Worker 13 | . 1 1 3 . . . . . 2 . 6 . Builder 10 | . 2 . 1 1 . 1 . . . . 5 . Tunneler 3 | . . 2 1 . . . . . . . . . Hauler 10 | . . . 2 5 . . . . 1 . 2 . Recycler 15 | 1 . . 1 3 . 1 . . 5 . 4 . Mechanic 1 | . . . . . . . . . . 1 . . Operator 1 | . . . 1 . . . . . . . . . Drone 1 | . . . . . . 1 . . . . . . Watcher 1 | . . . 1 . . . . . . . . . Swarmer 43 | . 6 . 9 4 10 . . 2 2 10 . . Grunt 57 | . 7 . 8 1 9 . . 6 8 5 13 . Brawler 2 | . . . . . . . . 1 . 1 . . Duelist 9 | . . . 1 . 3 . . 3 . 2 . . Sentry 28 | . . . 7 7 1 . 1 1 6 2 3 . Hunter 7 | . . . . . . . . 2 3 2 . . Programmer 7 | . . . . . . . 2 . 3 . 2 . Compactor 2 | . . . . . . . . . . . . 2 Best Kill Streak 13 | 1 5 1 7 4 7 1 2 3 6 13 12 1 Combat Bots Only 13 | . 3 . 5 4 7 1 2 3 4 13 6 1 Max Kills in Single Turn 6 | 1 2 1 2 3 6 1 1 2 1 5 2 1 Gunslinging . | . . . . . . . . . . . . . Exploded 6 | . 2 . 2 3 6 . . 1 1 5 2 . Melee 1 | . . . . . . . . . . . . 1 Uniques/NPCs Destroyed . | . . . . . . . . . . . . . Combat | -11 -10 -10 -9 -9 -9 -9 -7 -7 -7 -7 -6 -6 -------- Run | Scr Mat Min Mat Sto Gar Rec Fac Gar Fac Gar Fac Was Damage Taken 9696 | . 582 . 941 418 671 6 207 441 1845 1521 1572 1492 Core 1661 | . 206 . 248 7 66 . 6 16 155 107 312 538 Absorbed by Shields 137 | . . . . . 18 1 55 45 . 18 . . Core Remaining (%) 48 | 100 . 17 . . . 19 . . . 59 . . Volleys Fired 541 | 2 48 7 66 39 49 15 18 55 105 42 90 5 Largest 2 | 2 2 2 2 2 2 2 2 2 2 2 2 1 Hottest 160 | 70 70 40 88 136 136 46 136 136 136 145 160 30 Shots Fired 1024 | 4 89 14 129 78 91 30 30 106 197 83 168 5 Gun 281 | 4 87 14 28 4 46 30 . . . . 68 . Cannon 678 | . . . 98 73 42 . 24 105 183 71 82 . Launcher 33 | . 2 . 3 1 3 . . 1 3 12 8 . Special 32 | . . . . . . . 6 . 11 . 10 5 Kinetic 393 | 2 46 14 125 75 46 30 . . . . 55 . Thermal 566 | 2 41 . 1 2 42 . 24 105 183 71 95 . Explosive 32 | . 2 . 2 1 3 . . 1 3 12 8 . Electromagnetic 1 | . . . 1 . . . . . . . . . Robot Hit Streak 36 | 1 12 10 14 19 36 10 12 33 28 23 11 6 Robot Miss Streak 11 | 1 3 1 11 7 2 2 3 2 4 2 4 . Penetration Max . | . . . . . . . . . . . . . Secondary Targets 4 | . 1 . . . 3 . . . . . . . Max Gunslinging Chain 1 | . 1 . . . 1 . . . . . . . Shots Hit Robots 805 | 2 60 11 110 68 61 21 23 71 150 52 132 44 Core Hits 469 | 2 23 4 82 58 35 5 6 31 56 38 81 48 Critical Hits 51 | . . . 1 1 5 . 5 11 21 4 1 2 Critical Kills 16 | . . . . 1 2 . 2 2 7 2 . . Critical Parts Destroyed 33 | . . . 1 . 3 . 3 9 14 1 1 1 Melee Attacks 55 | . . . . 1 . . . . 12 . 2 40 Impact 13 | . . . . 1 . . . . 12 . . . Slashing . | . . . . . . . . . . . . . Piercing 42 | . . . . . . . . . . . 2 40 Sneak Attacks 19 | . . . . . . . . . . . . 19 Combat Hostiles 19 | . . . . . . . . . . . . 19 Follow-up Attacks . | . . . . . . . . . . . . . Damage Inflicted 19682 | 29 923 135 1816 1255 2135 299 418 1666 3358 2213 3925 1510 Guns 3499 | 29 692 135 314 63 594 299 . . . . 1373 . Cannons 9933 | . . . 1203 1038 442 . 418 1547 2784 1055 1446 . Explosions 4422 | . 231 . 299 154 1099 . . 119 256 1158 1106 . Melee 1555 | . . . . . . . . . 318 . . 1237 Ramming 273 | . . . . . . . . . . . . 273 Kinetic 4951 | 29 330 135 1501 1060 594 299 . . . . 1003 . Thermal 8527 | . 362 . 16 41 442 . 418 1547 2784 1055 1862 . Explosive 4348 | . 231 . 271 154 1099 . . 119 256 1158 1060 . Electromagnetic 28 | . . . 28 . . . . . . . . . Impact 318 | . . . . . . . . . 318 . . . Slashing . | . . . . . . . . . . . . . Piercing 1237 | . . . . . . . . . . . . 1237 Highest Corruption 23 | . . . . . . . . . 2 2 1 23 Average Corruption 3 | . . . . . . . . . 1 2 1 11 Corruption Purged . | . . . . . . . . . . . . . Effects 41 | . . . . . . . . . 3 12 6 20 Message Errors 9 | . . . . . . . . . 1 4 2 2 Matter Fused 2 | . . . . . . . . . . . . 2 Heat Flow Errors 2 | . . . . . . . . . . 1 . 1 Energy Discharges 8 | . . . . . . . . . . 3 1 4 Data Loss (minor) 9 | . . . . . . . . . 1 4 . 4 Misdirections 5 | . . . . . . . . . . . . 5 Targeting Errors 6 | . . . . . . . . . 1 . 3 2 Overload Shots . | . . . . . . . . . . . . . Overflow Damage 381 | . . . 13 . 59 . 2 8 172 96 31 . Projectiles 109 | . . . 4 . . . 2 8 87 . 8 . Explosions 187 | . . . 9 . 59 . . . . 96 23 . Melee 85 | . . . . . . . . . 85 . . . Knockbacks 69 | . . . 34 19 . . . . . . 16 . Impact . | . . . . . . . . . . . . . Kinetic 54 | . . . 26 16 . . . . . . 12 . Secondary 15 | . . . 8 3 . . . . . . 4 . Self-Inflicted Damage 269 | . 5 . 2 . . . . . . . 142 120 Shots 5 | . 1 . 1 . . . . . . . 3 . Rammed 79 | . . . . . . . . . . . . 79 Targets Rammed 79 | . . . . . . . . . . . . 79 Kicked . | . . . . . . . . . . . . . Crushed . | . . . . . . . . . . . . . Highest Temperature 522 | 18 314 . 318 204 386 . 153 334 522 245 198 214 Average Temperature 89 | 10 121 . 86 44 116 . 61 70 118 79 76 106 Received Heat Transfer 2193 | . 246 . 276 114 135 . 79 170 429 198 546 . Effects 8 | . 2 . 2 . 2 . . . 2 . . . Shutdowns 1 | . . . . . 1 . . . . . . . Energy Bleed 2 | . 2 . . . . . . . . . . . Interference 1 | . . . . . 1 . . . . . . . Matter Decay 3 | . . . 1 . . . . . 2 . . . Damage (minor) 1 | . . . 1 . . . . . . . . . Siege Activations . | . . . . . . . . . . . . . Robots Corrupted . | . . . . . . . . . . . . . Combat Hostiles . | . . . . . . . . . . . . . Parts Fried 3 | . . . . . . . . . 3 . . . Impact Corruptions 5 | . . . . . . . . . 5 . . . Robots Melted 3 | . . . . . . . . 1 1 . 1 . Combat Hostiles 2 | . . . . . . . . . 1 . 1 . Parts Melted 34 | . 4 . . . 2 . 1 4 11 6 6 . Heat Transferred 15445 | . 1073 . 37 74 721 . 684 2680 4847 1636 3693 . Parts Sabotaged . | . . . . . . . . . . . . . Parts Stolen . | . . . . . . . . . . . . . Parts Stripped . | . . . . . . . . . . . . . Power Chain Reactions . | . . . . . . . . . . . . . Missiles Intercepted . | . . . . . . . . . . . . . Alert | -11 -10 -10 -9 -9 -9 -9 -7 -7 -7 -7 -6 -6 ------- Run | Scr Mat Min Mat Sto Gar Rec Fac Gar Fac Gar Fac Was Peak Influence 1130 | 5 265 87 579 392 790 517 1130 788 623 613 613 1000 Average Influence 406 | 4 145 77 306 231 547 378 566 575 413 445 324 247 Maximum Alert Level 4 | . 1 . 2 1 3 2 4 3 2 2 2 3 Low Security (%) 20 | 100 70 100 31 22 4 . 46 5 19 8 8 64 Level 1 28 | . 30 . 31 77 12 59 . 9 3 28 69 11 Level 2 40 | . . . 36 . 58 40 . 61 76 63 21 14 Level 3 10 | . . . . . 25 . 42 22 . . . 9 Level 4 . | . . . . . . . 10 . . . . . Level 5 . | . . . . . . . . . . . . . High Security . | . . . . . . . . . . . . . Max Security . | . . . . . . . . . . . . . Squads Dispatched 25 | . 4 . 3 3 . . 3 . 8 . 4 . Investigation 11 | . 4 . 1 . . . . . 5 . 1 . Extermination 5 | . . . . . . . 2 . 2 . 1 . Reinforcement 6 | . . . 2 . . . 1 . 1 . 2 . Assault . | . . . . . . . . . . . . . Garrison 3 | . . . . 3 . . . . . . . . Intercept . | . . . . . . . . . . . . . Construction Impeded 1 | . . . . . . . . . . . 1 . Haulers Reinforced 1 | . . . . . . . . . . . 1 . Stealth | -11 -10 -10 -9 -9 -9 -9 -7 -7 -7 -7 -6 -6 --------- Run | Scr Mat Min Mat Sto Gar Rec Fac Gar Fac Gar Fac Was Distress Signals 6 | . . . 3 2 . . . . . . 1 . Communications Jammed . | . . . . . . . . . . . . . Distress Signals . | . . . . . . . . . . . . . Times Spotted 253 | . 17 . 43 22 21 25 8 32 35 20 25 5 Peak Tracking Total 9 | . 6 . 6 4 9 4 3 4 4 9 6 4 Tactical Retreats 20 | . . . 7 2 1 . . 4 5 1 . . Traps | -11 -10 -10 -9 -9 -9 -9 -7 -7 -7 -7 -6 -6 ------- Run | Scr Mat Min Mat Sto Gar Rec Fac Gar Fac Gar Fac Was Traps Triggered 20 | . 2 . . . 9 . . . 1 7 1 . Indirectly . | . . . . . . . . . . . . . Trap Hack Attempts . | . . . . . . . . . . . . . Triggered . | . . . . . . . . . . . . . Disarmed . | . . . . . . . . . . . . . Reprogrammed 6 | . . . . . . . . . . . 6 . Reused 1 | . . . . . . . . . . . 1 . Traps Extracted . | . . . . . . . . . . . . . Installed . | . . . . . . . . . . . . . Triggered 1 | . . . . . . . . . . . 1 . Machines | -11 -10 -10 -9 -9 -9 -9 -7 -7 -7 -7 -6 -6 ---------- Run | Scr Mat Min Mat Sto Gar Rec Fac Gar Fac Gar Fac Was Machines Disabled 16 | . . . 1 1 4 . . 4 1 3 2 . Max in Single Turn 2 | . . . 1 1 1 . . 1 1 1 2 . Garrison Relay 11 | . . . . . 4 . . 4 . 3 . . Machines Sabotaged . | . . . . . . . . . . . . . Garrisons Compromised . | . . . . . . . . . . . . . Overloaded Fab Kills . | . . . . . . . . . . . . . Fab Network Shutdowns . | . . . . . . . . . . . . . Hacking | -11 -10 -10 -9 -9 -9 -9 -7 -7 -7 -7 -6 -6 --------- Run | Scr Mat Min Mat Sto Gar Rec Fac Gar Fac Gar Fac Was Machines Accessed 53 | . 5 . 6 11 . 10 6 . 8 . 7 . Terminals 31 | . 3 . 5 8 . 4 2 . 5 . 4 . Fabricators 4 | . . . . . . . 1 . 1 . 2 . Repair Stations 5 | . . . 1 1 . . 1 . 1 . 1 . Recycling Units 9 | . 2 . . 1 . 6 . . . . . . Scanalyzers 1 | . . . . . . . 1 . . . . . Garrison Access 3 | . . . . 1 . . 1 . 1 . . . Total Hacks 166 | . 17 . 18 39 . 29 16 . 26 . 21 . Successful 87 | . 7 . 10 22 . 16 10 . 12 . 10 . Failed 79 | . 10 . 8 17 . 13 6 . 14 . 11 . Catastrophic 13 | . . . 1 4 . 2 2 . 3 . 1 . Database Lockouts . | . . . . . . . . . . . . . Manual 112 | . 17 . 15 28 . 19 6 . 14 . 13 . Terminals 106 | . 14 . 16 25 . 17 4 . 16 . 14 . Fabricators 12 | . . . . . . . 5 . 3 . 4 . Repair Stations 12 | . . . 2 2 . . 1 . 4 . 3 . Recycling Units 21 | . 3 . . 6 . 12 . . . . . . Scanalyzers 4 | . . . . . . . 4 . . . . . Garrison Access 11 | . . . . 6 . . 2 . 3 . . . Terminal Hacks 22 | . 3 . 5 8 . 4 1 . . . 1 . Part Schematic 2 | . 1 . . . . 1 . . . . . . Robot Analysis 3 | . 2 . 1 . . . . . . . . . Prototype ID Bank 1 | . . . 1 . . . . . . . . . Open Door 3 | . . . . 3 . . . . . . . . Branch Access Points 1 | . . . 1 . . . . . . . . . Unreport Threat 5 | . . . . 3 . 1 1 . . . . . Reprogram Traps 1 | . . . . . . . . . . . 1 . Dispatch Records 1 | . . . . . . 1 . . . . . . Security Status 1 | . . . . 1 . . . . . . . . Surveillance Status 1 | . . . . . . 1 . . . . . . Patrol Status 1 | . . . . 1 . . . . . . . . Recall Reinforcements 1 | . . . 1 . . . . . . . . . Zone Layout 1 | . . . 1 . . . . . . . . . Fabricator Hacks 9 | . . . . . . . 4 . 3 . 2 . Load Schematic 3 | . . . . . . . 1 . 1 . 1 . Build 6 | . . . . . . . 3 . 2 . 1 . Repair Station Hacks 8 | . . . 2 2 . . . . 3 . 1 . Scan Component 5 | . . . 1 1 . . . . 2 . 1 . Repair 3 | . . . 1 1 . . . . 1 . . . Recycling Unit Hacks 4 | . . . . 1 . 3 . . . . . . Retrieve Components 4 | . . . . 1 . 3 . . . . . . Scanalyzer 4 | . . . . . . . 4 . . . . . Insert Component 2 | . . . . . . . 2 . . . . . Analyze 2 | . . . . . . . 2 . . . . . Garrison Access Hacks 3 | . . . . 1 . . 1 . 1 . . . Unlock Access 3 | . . . . 1 . . 1 . 1 . . . Unauthorized Hacks 37 | . 4 . 3 10 . 9 . . 5 . 6 . Terminals 25 | . 2 . 3 7 . 3 . . 5 . 5 . Track 9 | . . . 2 5 . . . . 1 . 1 . Botnet 6 | . . . . 2 . 2 . . 1 . 1 . Detonate 1 | . . . . . . . . . . . 1 . Disrupt 1 | . . . . . . . . . . . 1 . Operators 2 | . . . . . . . . . 1 . 1 . Search 6 | . 2 . 1 . . 1 . . 2 . . . Fabricators . | . . . . . . . . . . . . . Repair Stations 1 | . . . . . . . . . . . 1 . Mechanics 1 | . . . . . . . . . . . 1 . Recycling Units 10 | . 2 . . 2 . 6 . . . . . . Reject 1 | . . . . 1 . . . . . . . . Mask 1 | . . . . 1 . . . . . . . . Tunnel 8 | . 2 . . . . 6 . . . . . . Scanalyzers . | . . . . . . . . . . . . . Garrison Access 1 | . . . . 1 . . . . . . . . Reprogram 1 | . . . . 1 . . . . . . . . Data Cores Recovered 2 | . . . . 1 . . 1 . . . . . Used 1 | . . . . . . . 1 . . . . . Hacking Detections 43 | . 3 . 5 9 . 6 5 . 8 . 7 . Full Trace Events 8 | . . . . 1 . 3 . . 3 . 1 . Feedback Events . | . . . . . . . . . . . . . Feedback Blocked . | . . . . . . . . . . . . . Robot Schematics Acquired . | . . . . . . . . . . . . . Robots Built 6 | . . . . . . . 6 . . . . . Matter 504 | . . . . . . . 504 . . . . . Time 268 | . . . . . . . 268 . . . . . Total Robot Build Rating 24 | . . . . . . . 24 . . . . . Part Schematics Acquired 4 | . 1 . . . . 1 2 . . . . . Parts Built 3 | . . . . . . . . . 2 . 1 . Matter 306 | . . . . . . . . . 204 . 102 . Time 127 | . . . . . . . . . 102 . 25 . Total Part Build Rating 3 | . . . . . . . . . 2 . 1 . Parts Repaired 3 | . . . 1 1 . . . . 1 . . . Time 80 | . . . 16 38 . . . . 26 . . . Parts Recycled . | . . . . . . . . . . . . . Recycled Matter . | . . . . . . . . . . . . . Retrieved Matter . | . . . . . . . . . . . . . Retrieved Components 24 | . . . . 10 . 14 . . . . . . Parts Scanalyzed 2 | . . . . . . . 2 . . . . . Part Schematics Acquired 2 | . . . . . . . 2 . . . . . Parts Damaged . | . . . . . . . . . . . . . Bothacking | -11 -10 -10 -9 -9 -9 -9 -7 -7 -7 -7 -6 -6 ------------ Run | Scr Mat Min Mat Sto Gar Rec Fac Gar Fac Gar Fac Was Used RIF Installer 3 | . . . . . 1 . . 1 . 1 . . Alert ID Control 1 | . . . . . . . . 1 . . . . Autooverride 1 | . . . . . . . . . . 1 . . Robots Hacked 11 | . . . . . . . 1 . 3 . 2 5 Non-combat 6 | . . . . . . . 1 . 3 . 2 . Combat 5 | . . . . . . . . . . . . 5 Robot Hacks Applied 25 | . . . . . . . 5 . 8 . 7 5 find_chute 1 | . . . . . . . . . . . 1 . purge_threat 13 | . . . . . . . 5 . 4 . 4 . reprogram_traps 1 | . . . . . . . . . 1 . . . block_reporting 1 | . . . . . . . . . . . 1 . recall_investigation 1 | . . . . . . . . . 1 . . . ignore_targets 5 | . . . . . . . . . . . . 5 link_fov 1 | . . . . . . . . . . . 1 . formatsys_low 2 | . . . . . . . . . 2 . . . Relay Couplers Released 43 | . . . . . 15 . . 15 . 13 . . Machine Destruction 43 | . . . . . 15 . . 15 . 13 . . Attached 10 | . . . . . . . 2 . 3 1 2 2 Robots Rewired 18 | . . . . . . 18 . . . . . . Allies Hacked . | . . . . . . . . . . . . . Hacks Repelled . | . . . . . . . . . . . . . Allies | -11 -10 -10 -9 -9 -9 -9 -7 -7 -7 -7 -6 -6 -------- Run | Scr Mat Min Mat Sto Gar Rec Fac Gar Fac Gar Fac Was Total Allies 29 | . . . . 3 . 18 6 . 2 . . . Largest Group 18 | . . . . 3 . 16 18 17 1 1 . . Highest-Rated Group 357 | . . . . 15 . 212 357 327 19 19 . . Highest-Rated Ally 30 | . . . . 5 . 24 30 30 19 19 . . Total Orders 8 | . . . . . . 3 . . 5 . . . STAY 1 | . . . . . . . . . 1 . . . AID 4 | . . . . . . . . . 4 . . . PICKUP 1 | . . . . . . 1 . . . . . . COLLECT 2 | . . . . . . 2 . . . . . . Ally Attacks 249 | . . . . 6 . 124 28 91 . . . . Total Damage 3445 | . . . . 42 . 831 457 2115 . . . . Kills 51 | . . . . 3 . 28 5 15 . . . . Allies Corrupted . | . . . . . . . . . . . . . Allies Melted . | . . . . . . . . . . . . . Intel | -11 -10 -10 -9 -9 -9 -9 -7 -7 -7 -7 -6 -6 ------- Run | Scr Mat Min Mat Sto Gar Rec Fac Gar Fac Gar Fac Was Robot Analysis Total 3 | . 2 . 1 . . . . . . . . . Derelict Logs Recovered 1 | . . 1 . . . . . . . . . . Drone Launches . | . . . . . . . . . . . . . Drone Recoveries . | . . . . . . . . . . . . . Exploration | -11 -10 -10 -9 -9 -9 -9 -7 -7 -7 -7 -6 -6 ------------- Run | Scr Mat Min Mat Sto Gar Rec Fac Gar Fac Gar Fac Was Turns Passed 13252 | 22 500 269 991 1322 2374 1054 1019 1173 1899 1026 1218 385 Spaces Moved 6290 | 13 238 159 459 609 1226 403 474 598 812 439 633 227 Core 154 | . . . . . . . . . . . . 154 Treads 4792 | . . . 233 609 1226 403 474 598 812 437 . . Legs 444 | 13 238 159 34 . . . . . . . . . Wheels 900 | . . . 192 . . . . . . 2 633 73 Hover . | . . . . . . . . . . . . . Flight . | . . . . . . . . . . . . . Fastest Speed 50 | 120 120 150 86 160 160 180 160 160 160 180 100 50 Average Speed 156 | 120 138 150 130 163 171 180 160 160 168 191 118 69 Slowest Speed 220 | 120 150 150 160 180 180 180 160 160 180 220 180 120 Overloaded Moves . | . . . . . . . . . . . . . Propulsion Burnouts . | . . . . . . . . . . . . . Robots Hopped . | . . . . . . . . . . . . . Cave-ins Triggered . | . . . . . . . . . . . . . Exploration Rate (%) 47 | 3 49 47 41 66 72 85 10 64 21 76 14 75 Regions Visited 12 Branch Regions 3 Pre-discovered Areas 9 | . 2 . . 1 . 6 . . . . . . Known Exits Taken 4 | . . . 1 1 . . 1 . 1 . . . Unknown Exits Taken 4 | 1 1 1 . . . 1 . . . . . . Scrap Searched 1 | . . 1 . . . . . . . . . . Spaces Dug 21 | . 8 . . . . . . . 11 . 2 . Terrain Destroyed 262 | . 17 . 42 10 14 . . 1 55 47 76 . Melee 3 | . . . . . . . . . 1 . 2 . Projectile 14 | . . . . . . . . . . 1 13 . AOE 245 | . 17 . 42 10 14 . . 1 54 46 61 . Actions | -11 -10 -10 -9 -9 -9 -9 -7 -7 -7 -7 -6 -6 --------- Run | Scr Mat Min Mat Sto Gar Rec Fac Gar Fac Gar Fac Was Total 8559 | 15 316 176 719 857 1409 702 709 714 1121 535 914 372 Wait 979 | . 10 9 141 145 67 124 174 33 147 10 119 . Move 6281 | 12 237 158 458 608 1225 402 474 597 812 438 633 227 Hop . | . . . . . . . . . . . . . Pick Up 118 | . 7 . 14 12 21 . 13 8 8 7 23 5 Fast Attach 61 | 1 6 1 8 9 9 . 4 1 3 5 12 2 Attach 53 | . 1 . 6 3 3 . 7 4 10 8 10 1 Detach 6 | . . . . 2 1 . 1 . . 1 1 . Swap 92 | . 5 . 11 16 6 . 6 5 18 8 14 3 Drop 99 | . 2 1 15 22 8 . 12 10 5 3 10 11 Fire 541 | 2 48 7 66 39 49 15 18 55 105 42 90 5 Melee 55 | . . . . 1 . . . . 12 . 2 40 Ram 78 | . . . . . . . . . . . . 78 Kick . | . . . . . . . . . . . . . Crush . | . . . . . . . . . . . . . Escape Stasis 31 | . . . . . 17 . . 1 . 13 . . Rewire 165 | . . . . . 3 161 . . 1 . . . Trap . | . . . . . . . . . . . . . Miscellaneous . | . . . . . . . . . . . . . Route ------- -11/Scrapyard -10/Materials (discovered 3 exits: *Mat x2 / [*Min]) -10/Mines -9/Materials (discovered 2 exits: *Min / *Sto) -9/Storage -9/Garrison (discovered 3 exits: *Rec x3) -9/Recycling -7/Factory -7/Garrison (discovered 3 exits: *Fac x3) -7/Factory (discovered 3 exits: *Fac / [*Low] / Gar) -7/Garrison (discovered 2 exits: *Fac x2) -6/Factory -6/Waste History --------- Turn | Location | Event 7 | -11/Scrapyard | Discovered new exit (range 3) 23 | -11/Scrapyard | Entered Materials 227 | -10/Materials | Discovered new exit (range 3) 318 | -10/Materials | Build established: Mutant 344 | -10/Materials | Core integrity fell below 50% 396 | -10/Materials | Core integrity fell below 20% 431 | -10/Materials | Discovered new exit (range 3) 495 | -10/Materials | Discovered new exit (range 10) 523 | -10/Materials | Entered Mines 750 | -10/Mines | Learned Materials stockpile data 780 | -10/Mines | Discovered new exit (range 9) 792 | -10/Mines | Entered Materials 792 | -9/Materials | Evolved 2 slots: Propulsion x1, Utility x1 990 | -9/Materials | Identified exit to Mines 990 | -9/Materials | Identified exit to Storage 1067 | -9/Materials | Repaired Imp. Ion Engine 1411 | -9/Materials | Core integrity fell below 50% 1783 | -9/Materials | Entered Storage 1807 | -9/Storage | Identified exit to Garrison 1840 | -9/Storage | Garrison activated, responded to threat 1988 | -9/Storage | Repaired Flak Cannon 2706 | -9/Storage | Build established: Scavenger-Mutant 2806 | -9/Storage | Learned location of Armory (-3) 3105 | -9/Storage | Entered Garrison 3192 | -9/Garrison | Triggered checkpoint 3194 | -9/Garrison | Build established: Hauler-Mutant 3196 | -9/Garrison | Destroyed 7 combat bots 3307 | -9/Garrison | Discovered new exit (range 12) 3442 | -9/Garrison | Triggered checkpoint 3524 | -9/Garrison | Triggered checkpoint 3571 | -9/Garrison | Discovered new exit (range 14) 3696 | -9/Garrison | Triggered checkpoint 3764 | -9/Garrison | Discovered new exit (range 15) 3800 | -9/Garrison | Installed Relay Interface Framework 4014 | -9/Garrison | Garrison Relay disabled 4273 | -9/Garrison | Triggered checkpoint 4311 | -9/Garrison | Garrison Relay disabled 4453 | -9/Garrison | Build established: Mutant 4608 | -9/Garrison | Triggered checkpoint 4682 | -9/Garrison | Garrison Relay disabled 4836 | -9/Garrison | Triggered checkpoint 4891 | -9/Garrison | Core integrity fell below 20% 4938 | -9/Garrison | Garrison Relay disabled 4992 | -9/Garrison | Triggered checkpoint 5426 | -9/Garrison | Build established: Hauler-Mutant 5479 | -9/Garrison | Entered Recycling 5519 | -9/Recycling | Spotter reported a threat 5535 | -9/Recycling | Spotter reported a threat 5550 | -9/Recycling | Spotter reported a threat 5562 | -9/Recycling | Spotter reported a threat 5588 | -9/Recycling | Spotter reported a threat 5615 | -9/Recycling | Spotter reported a threat 5635 | -9/Recycling | Spotter reported a threat 5647 | -9/Recycling | Spotter reported a threat 5668 | -9/Recycling | Spotter reported a threat 5680 | -9/Recycling | Spotter reported a threat 5685 | -9/Recycling | Spotter reported a threat 5685 | -9/Recycling | Spotter reported a threat 5706 | -9/Recycling | Spotter reported a threat 5719 | -9/Recycling | Spotter reported a threat 5733 | -9/Recycling | Spotter reported a threat 5748 | -9/Recycling | Spotter reported a threat 5774 | -9/Recycling | Spotter reported a threat 5790 | -9/Recycling | Spotter reported a threat 5802 | -9/Recycling | Spotter reported a threat 5830 | -9/Recycling | Spotter reported a threat 5843 | -9/Recycling | Spotter reported a threat 5855 | -9/Recycling | Spotter reported a threat 5876 | -9/Recycling | Spotter reported a threat 5908 | -9/Recycling | Spotter reported a threat 5959 | -9/Recycling | Spotter reported a threat 5996 | -9/Recycling | Build established: Commander-Mutant 6041 | -9/Recycling | Spotter reported a threat 6076 | -9/Recycling | Spotter reported a threat 6085 | -9/Recycling | Spotter reported a threat 6145 | -9/Recycling | Spotter reported a threat 6146 | -9/Recycling | Spotter reported a threat 6185 | -9/Recycling | Spotter reported a threat 6185 | -9/Recycling | Spotter reported a threat 6201 | -9/Recycling | Spotter reported a threat 6216 | -9/Recycling | Spotter reported a threat 6238 | -9/Recycling | Spotter reported a threat 6286 | -9/Recycling | Spotter reported a threat 6290 | -9/Recycling | Spotter reported a threat 6290 | -9/Recycling | Spotter reported a threat 6291 | -9/Recycling | Spotter reported a threat 6342 | -9/Recycling | Spotter reported a threat 6343 | -9/Recycling | Spotter reported a threat 6380 | -9/Recycling | Spotter reported a threat 6380 | -9/Recycling | Spotter reported a threat 6380 | -9/Recycling | Spotter reported a threat 6389 | -9/Recycling | Discovered new exit (range 10) 6533 | -9/Recycling | Entered Factory 6533 | -7/Factory | Accompanied by 13 allies 6533 | -7/Factory | Evolved 4 slots: Propulsion x1, Utility x3 7371 | -7/Factory | Fabricated L-41 Fighter (x3) 7505 | -7/Factory | Fabricated L-41 Fighter (x3) 7545 | -7/Factory | Identified exit to Garrison 7552 | -7/Factory | Entered Garrison 7552 | -7/Garrison | Accompanied by 17 allies 7582 | -7/Garrison | Triggered checkpoint 7610 | -7/Garrison | Triggered checkpoint 7616 | -7/Garrison | Garrison Relay disabled 7690 | -7/Garrison | Triggered checkpoint 7720 | -7/Garrison | Triggered checkpoint 7769 | -7/Garrison | Triggered checkpoint 7800 | -7/Garrison | Garrison Relay disabled 7838 | -7/Garrison | Discovered new exit (range 14) 7954 | -7/Garrison | Triggered checkpoint 8044 | -7/Garrison | Discovered new exit (range 14) 8093 | -7/Garrison | Expanded RIF knowledge: Alert ID Control 8250 | -7/Garrison | Triggered checkpoint 8314 | -7/Garrison | Garrison Relay disabled 8399 | -7/Garrison | Build established: Bothacker-Mutant 8457 | -7/Garrison | Triggered checkpoint 8494 | -7/Garrison | Garrison Relay disabled 8577 | -7/Garrison | Discovered new exit (range 14) 8725 | -7/Garrison | Entered Factory 8974 | -7/Factory | Repaired Lgt. Treads 9418 | -7/Factory | Discovered new exit (range 5) 9615 | -7/Factory | Discovered new exit (range 15) 9700 | -7/Factory | Fabricated Hcp. Storage Unit (x1) 9751 | -7/Factory | Fabricated Hcp. Storage Unit (x1) 10542 | -7/Factory | Build established: Hauler-Mutant 10624 | -7/Factory | Identified exit to Garrison 10624 | -7/Factory | Entered Garrison 10624 | -7/Garrison | Accompanied by 1 ally 10710 | -7/Garrison | Triggered checkpoint 10739 | -7/Garrison | Destroyed 13 combat bots 10784 | -7/Garrison | Lost 6 parts (4n2w) 10786 | -7/Garrison | Triggered checkpoint 10792 | -7/Garrison | Triggered checkpoint 10864 | -7/Garrison | Discovered new exit (range 11) 10894 | -7/Garrison | Expanded RIF knowledge: Autooverride 10982 | -7/Garrison | Triggered checkpoint 11030 | -7/Garrison | Garrison Relay disabled 11206 | -7/Garrison | Triggered checkpoint 11241 | -7/Garrison | Garrison Relay disabled 11330 | -7/Garrison | Build established: Bothacker-Mutant 11466 | -7/Garrison | Triggered checkpoint 11506 | -7/Garrison | Garrison Relay disabled 11509 | -7/Garrison | Lost 3 parts (1n1u1w) 11618 | -7/Garrison | Discovered new exit (range 10) 11650 | -7/Garrison | Entered Factory 11650 | -6/Factory | Evolved 2 slots: Utility x2 12133 | -6/Factory | Fabricated Hcp. Storage Unit (x1) 12521 | -6/Factory | Lost 6 parts (3n2u1w) 12868 | -6/Factory | Sucked down chute 12868 | -6/Factory | Entered Waste 12873 | -6/Waste | Spotted C-40 Crusher 12883 | -6/Waste | EMP discharged 12927 | -6/Waste | Spotted C-40 Crusher 12959 | -6/Waste | Spotted C-40 Crusher 12959 | -6/Waste | Spotted C-40 Crusher 12960 | -6/Waste | Destroyed C-40 Crusher 12970 | -6/Waste | Found Damper Plating 12983 | -6/Waste | EMP discharged 12990 | -6/Waste | Spotted C-40 Crusher 13012 | -6/Waste | Spotted C-40 Crusher 13033 | -6/Waste | Crushed by Compactor (1 part destroyed, 2 dropped) 13042 | -6/Waste | Crushed by Compactor (1 part destroyed) 13066 | -6/Waste | Crushed by Compactor (0 parts destroyed, 1 dropped) 13083 | -6/Waste | EMP discharged 13087 | -6/Waste | Crushed by Compactor (1 part destroyed) 13096 | -6/Waste | Crushed by Compactor (1 part destroyed, 2 dropped) 13099 | -6/Waste | Crushed by Compactor (1 part destroyed, 1 dropped) 13103 | -6/Waste | Core integrity fell below 50% 13115 | -6/Waste | Core integrity fell below 20% 13115 | -6/Waste | Destroyed C-40 Crusher 13130 | -6/Waste | Lost 7 parts (1p2n3u1w) 13149 | -6/Waste | System corruption reached 10% 13183 | -6/Waste | EMP discharged 13253 | -6/Waste | Core destroyed Last Messages --------------- 13206_ Slammed into C-40 Crusher. 13208_ Destabilizing: System corrupted (+1). 13209_ Slammed into C-40 Crusher. 13209_ 2 Matter crushed. 13210_ System corrupted: Energy discharge (-36). 13211_ 4 Matter crushed. 13211_ Slammed into C-40 Crusher. 13212_ 2 Matter crushed. 13213_ 5 Matter crushed. 13214_ Slammed into C-40 Crusher. 13216_ Destabilizing: Core damaged (-17). 13216_ 4 Matter crushed. 13216_ 3 Matter crushed. 13218_ 2 Matter crushed. 13221_ Slammed into C-40 Crusher. 13225_ 4 Matter crushed. 13245_ Slammed into C-40 Crusher. 13248_ System corrupted: Component data lost. 13248_ 3 Matter crushed. 13252_ Slammed into C-40 Crusher. Map ----- +----------------------------------------------------+ | ??????##########?????????????????????????????????? | | ??????# #?????????????????????????????????? | | ??????# #?????????????????????????????????? | | ??????# #?????????????????????????????????? | | ??????# #?????????????????????????????????? | | ??????# #?????????????????????????????????? | | ??????# #?????????????????????????????????? | | ??????# #?????????????????????????????????? | | ??????# #?????####???????? ???????? ? | | ??????### ###????# #??????# #??????? # | | ????????# #??????# #??????# #??????# # | | ????????# #??????# #??????# #??????# # | | ????????# #??????# #??????# #??????# # | | ??????### #??????# #??????# #####?## # | | ??????# %%#??????# #??????# ?? | | ??????# %%#??????# #??????# ??? | | ??????# %#??????# #??????# ????? | | ??????# %#??????# #??????# ?????? | | ??????### %#??????# #??????# #??????# # | | ######??# %#??????# #??????# #??????# # | | #??# %#??????# #??????# #??????# # | | #??# #??????# #??????# #??????# # | | #### ######## ######## ######## # | | CC | | CC CC CC % | | CC@CC CC | | CC | | #### " ######## ######## ######## # | | #??# #??????# #??????# #??????# # | | #??#%% #??????# #??????# #??????# # | | ######??#% #??????# #??????# #??????# # | | ??????### ######## ######## #??????# # | | ??????# ?????? | | ??????# ????? | | ??????# ???? | | ??????# ??? | | ??????### ######## ######## ####??## # | | ????????# #??????# #??????# #??????# # | | ????????# #??????# #??????# #??????# # | | ????????# #??????# #??????? ???????? ? | | ????????# #??????# #???????????????????????? | | ????????######??????######???????????????????????? | | ?????????????????????????????????????????????????? | | ?????????????????????????????????????????????????? | | ?????????????????????????????????????????????????? | | ?????????????????????????????????????????????????? | | ?????????????????????????????????????????????????? | | ?????????????????????????????????????????????????? | | ?????????????????????????????????????????????????? | | ?????????????????????????????????????????????????? | +----------------------------------------------------+ Best States ------------- Heat Dissipation 51 Coolant Potential 65 Energy Generation 18 Energy Capacity 310 Matter Stores 300 Matter Capacity 300 Sight Range 16 Terrain Scan Density 10 Armor Coverage 1200 Resistance: EM 90 Core Shielding 20 Propulsion Shielding 66 Evasion (%) 50 Targeting Accuracy 8 Recoil Reduction 4 Item Schematics ----------------- Hcp. Storage Unit | -10/Materials | Hacked System Shield | -9/Recycling | Hacked Shock Maul | -7/Factory | Scanalyzed Imp. Assault Rifle | -7/Factory | Scanalyzed Robot Schematics ------------------ None Fabricated ------------ L-41 Fighter | x3 | -7/Factory | Preloaded L-41 Fighter | x3 | -7/Factory | Preloaded Hcp. Storage Unit | x1 | -7/Factory Hcp. Storage Unit | x1 | -7/Factory Hcp. Storage Unit | x1 | -6/Factory Alien Tech Used ----------------- None Achievements -------------- Assassin Challenges ------------ None Game ------ Seed ProcessingFissionDevice Manual? 0 Play Time 01:43:17 Cumulative 205.8 hours Start 2020.09.02 @ 10:38:02 End 2020.09.02 @ 18:26:44 Sessions 7 Manual Loads 0 Difficulty Rogue Special Mode None Game No. 92 Rogue 92 Adventurer 0 Explorer 0 Win Type - Total 7 Types 6/0/0/1/0/0/0 Lore% 81 Gallery% 77 Achievement% 67 Wizard Run 0 Options --------- ASCII 1 Keyboard 0 Movement Numpad Keybinds 0 Fullscreen 1 Font 18/Cog Map View 76x50 Tactical HUD 1 Map Filters NONE Filters NONE Steam 1 RUN: a086e73d-c661-4e34-b365-29fb38016d09